fUSD/lending_fUSD_20260309
["ID","MTS","AMOUNT","RATE_DAILY","PERIOD"]
[408034695,1773060641008,-152.0,0.0001987,7]
[408034696,1773060641018,-267.0,0.00019871,2]
[408034697,1773060641026,-150.0,0.00019873,2]
[408034698,1773060641035,-500.0,0.00019873,2]
[408034699,1773060641045,-501.37407519,0.00019873,2]
[408034700,1773060641054,-250.0,0.00019874,3]
[408034701,1773060641063,-1263.71542816,0.00019875,2]
[408034702,1773060641072,-25000.0,0.00019882,3]
[408034703,1773060641081,-151.0,0.00019888,2]
[408034704,1773060641090,-25000.0,0.00019891,3]
[408034705,1773060641100,-963.0,0.00019892,2]
[408034706,1773060641109,-1387.0,0.00019892,2]
[408034707,1773060641119,-773.0,0.00019892,2]
[408034708,1773060641128,-500.0,0.00019892,2]
[408034709,1773060641137,-500.0,0.00019892,2]
[408034710,1773060641146,-784.0,0.00019892,2]
[408034711,1773060641155,-276.29568284,0.00019892,2]
[408034712,1773060641165,-154.61846768,0.00019892,2]
[408034713,1773060641174,-663.0,0.00019892,2]
[408034714,1773060641183,-500.0,0.00019892,2]
[408034715,1773060641191,-405.47740234,0.00019892,2]
[408034716,1773060641200,-500.0,0.00019892,2]
[408034717,1773060641209,-500.0,0.00019892,2]
[408034718,1773060641218,-968.0,0.00019892,2]
[408034719,1773060641227,-151.0,0.00019897,2]
[408034720,1773060641236,-187.78006525,0.00019898,2]
[408034721,1773060641245,-500.0,0.00019899,2]
[408034722,1773060641254,-500.0,0.00019899,2]
[408034723,1773060641263,-385.70701519,0.00019899,2]
[408034724,1773060641273,-500.0,0.00019899,2]
[408034725,1773060641282,-500.0,0.00019899,2]
[408034726,1773060641291,-271.29842234,0.00019899,2]
[408034727,1773060641300,-500.0,0.00019899,2]
[408034728,1773060641309,-307.64838074,0.00019899,2]
[408034729,1773060641317,-369.81710556,0.00019899,2]
[408034730,1773060641326,-32918.3967,0.000199,2]
[408034731,1773060641336,-485476.7297,0.000199,2]
[408034732,1773060641345,-1000.0,0.000199,2]
[408034733,1773060641355,-2000.0,0.000199,2]
[408034734,1773060641364,-25000.0,0.000199,3]
[408034735,1773060641373,-484.31397246,0.000199,2]
[408034736,1773060641382,-196.01348704,0.000199,2]
[408034737,1773060641391,-25000.0,0.000199,3]
[408034738,1773060641401,-5191.88454165,0.000199,2]
[408034739,1773060641410,-1900.50410419,0.000199,2]
[408034740,1773060641420,-250.0,0.000199,3]
[408034741,1773060641428,-5000.0,0.000199,2]
[408034742,1773060641437,-1611.61890734,0.000199,2]
[408034743,1773060641446,-1405.98906032,0.000199,2]
[408034744,1773060641456,-2000.0,0.000199,2]
[408034745,1773060641465,-708.16830237,0.000199,2]
[408034746,1773060641474,-431.56560751,0.000199,2]
[408034747,1773060641483,-1263.71542816,0.000199,2]
[408034748,1773060641491,-10045.16607364,0.000199,2]
[408034749,1773060641501,-1124.0,0.000199,7]
[408034750,1773060641510,-8531.31265296,0.000199,2]
[408034751,1773060641519,-171.63018512,0.000199,2]
[408034752,1773060641535,-4819.04359242,0.000199,2]
[408034753,1773060641544,-2703.0,0.000199,2]
[408034754,1773060641553,-250.0,0.00019918,3]
[408034755,1773060641563,-556.99166341,0.00019938,2]
[408034756,1773060641571,-963.0,0.00019947,2]
[408034757,1773060641580,-1387.0,0.00019947,2]
[408034758,1773060641590,-773.0,0.00019947,2]
[408034759,1773060641599,-576.0,0.00019947,2]
[408034760,1773060641616,-500.0,0.00019947,2]
[408034761,1773060641635,-784.0,0.00019947,2]
[408034762,1773060641646,-663.0,0.00019947,2]
[408034763,1773060641655,-500.0,0.00019947,2]
[408034764,1773060641665,-500.0,0.00019947,2]
[408034765,1773060641674,-150.0,0.00019947,2]
[408034766,1773060641683,-968.0,0.00019947,2]
[408034767,1773060641692,-257.07,0.00019947,2]
[408034768,1773060641702,-250.0,0.00019954,3]
[408034769,1773060641711,-832.0,0.00019955,2]
[408034770,1773060641720,-14573.5680713,0.00019958,2]
[408034771,1773060641730,-128185.58979644,0.00019958,2]
[408034785,1773060642748,-11756.43302354,0.00019958,2]
[408034786,1773060642762,-425.86724322,0.00019958,2]
[408034787,1773060642773,-841.41446949,0.00019958,2]
[408034788,1773060642785,-434.15793142,0.00019958,2]
[408034790,1773060643184,-273.77339925,0.00019791,2]
[408034791,1773060643193,-266.65909614,0.00019958,2]
[408034792,1773060643223,-289929.01013775,0.00019958,2]
[408034793,1773060643231,-350.0,0.00019964,2]
[408034794,1773060643241,-500.0,0.00019973,2]
[408034796,1773060643250,-3664.0,0.00019973,2]
[408034798,1773060643260,-323.77109867,0.00019973,2]
[408034799,1773060643269,-150.0,0.00019973,2]
[408034801,1773060643278,-700.0,0.00019976,2]
[408034803,1773060643288,-250.0,0.00019985,3]
[408034806,1773060643300,-1042.0,0.0001999,2]
[408034807,1773060643309,-619.0,0.0001999,2]
[408034808,1773060643319,-3505.0,0.0001999,2]
[408034809,1773060643328,-150.223,0.0001999,2]
[408034810,1773060643337,-1279.0,0.0001999,2]
[408034811,1773060643346,-3749.0,0.0001999,2]
[408034812,1773060643356,-414.0,0.0001999,2]
[408034813,1773060643366,-2461.0,0.0001999,2]
[408034814,1773060643376,-423.0,0.00019995,2]
[408034815,1773060643385,-3259.2012569,0.00019996,2]
[408034816,1773060643394,-5163.5656212,0.00019996,2]
[408034817,1773060643403,-151.0,0.00019997,2]
[408034818,1773060643413,-150.0,0.00019999,2]
[408034819,1773060643422,-350.0,0.00019999,2]
[408034820,1773060643431,-150.0,0.00019999,2]
[408034821,1773060643441,-160.53387614,0.00019999,2]
[408034822,1773060643450,-170.17616328,0.00019999,2]
[408034823,1773060643460,-1952.0,0.0002,2]
[408034824,1773060643470,-750172.65242254,0.0002,2]
[408034825,1773060643504,-342.26322073,0.0002,2]
[408034826,1773060643516,-590.0917593,0.0002,2]
[408034827,1773060643848,-676.749,0.00019837,2]
[408034828,1773060643858,-4.831,0.00019981,2]
[408034829,1773060643871,-995.169,0.00019981,2]
[408034830,1773060643881,-27793.16133654,0.0002,2]
[408034831,1773060643891,-386.61274178,0.0002,2]
[408034832,1773060643906,-884.5119237,0.0002,2]
[408034833,1773060643918,-335.426,0.0002,2]
[408034834,1773060643961,-13384.86122401,0.0002,2]
[408034838,1773060645780,-273.77339925,0.00019827,2]
[408034839,1773060645790,-425252.97838041,0.0002,2]
[408034848,1773060666436,-1109.0,0.00013517,2]
[408034851,1773061256312,-180.416132,0.0001393,2]
[408034852,1773061256340,-171.86,0.00014,2]
[408034853,1773061256368,-277.59604494,0.00014064,2]
[408034854,1773061256395,-207.31063414,0.00014128,2]
[408034855,1773061304867,-4999.66,0.000142,2]
[408034856,1773061305105,-0.69,0.000142,2]
[408034857,1773061306187,-1109.0,0.00014228,2]
[408034858,1773061309776,-1825.01,0.000144,5]
[408034859,1773061322098,-1349.99,0.000144,5]
[408034860,1773061322128,-1100.03,0.00014599,2]
[408034861,1773061355652,5000.01,9.5e-05,3]
[408034862,1773061355674,3633.21696299,9.5e-05,3]
[408034863,1773061390955,-99.97,0.00014599,2]
[408034864,1773061390991,-1109.0,0.00014977,2]
[408034865,1773061391021,-344.60943651,0.00015737,2]
[408034866,1773061391051,-1109.0,0.00015765,2]
[408034867,1773061391079,-171.86,0.0001595,2]
[408034868,1773061391105,-250.0,0.00016059,2]
[408034869,1773061391134,-1680.0,0.00016059,2]
[408034870,1773061391164,-171.13112698,0.00016199,2]
[408034871,1773061399366,-128.86887302,0.00016199,2]
[408034872,1773061399404,-300.0,0.00016199,2]
[408034873,1773061399596,-6700.11587659,0.000162,5]
[408034874,1773061402639,-10000.01,0.000162,5]
[408034883,1773061831804,-150.18,0.00014,2]
[408034885,1773061831814,-150.18,0.0001595,2]
[408034887,1773061831824,-1200.0,0.00016199,2]
[408034889,1773061831833,-829.38668649,0.000162,5]
[408034891,1773061831843,-83008.66738577,0.000162,5]
[408034892,1773061831853,-232.84602551,0.000162,7]
[408034893,1773061831862,-1109.0,0.00016553,2]
[408034894,1773061831872,-1831.7,0.00016712,2]
[408034895,1773061831881,-500.0,0.00016825,2]
[408034896,1773061831890,-7706.89798013,0.00017,2]
[408034897,1773061831900,-512.0,0.00017,2]
[408034898,1773061831909,-500.0,0.00017096,2]
[408034899,1773061831919,-500.0,0.00017096,2]
[408034900,1773061831928,-305.0,0.00017234,2]
[408034901,1773061831937,-1109.0,0.00017381,2]
[408034902,1773061831947,-1680.0,0.00017796,2]
[408034903,1773061831956,-801.97398632,0.00017808,2]
[408034904,1773061831967,-512.643642,0.000179,2]
[408034905,1773061831976,-1025.287284,0.000179,2]
[408034906,1773061831986,-150.18,0.000179,2]
[408034907,1773061831996,-714.69,0.00017943,2]
[408034908,1773061832005,-500.0,0.0001801,2]
[408034909,1773061832015,-1600.0,0.00018028,2]
[408034910,1773061832024,-150.66,0.00018038,2]
[408034911,1773061832034,-3240.0,0.00018041,2]
[408034912,1773061832043,-1852.42,0.00018049,2]
[408034913,1773061832052,-151.0,0.00018054,2]
[408034914,1773061832061,-151.0,0.00018054,2]
[408034915,1773061832072,-151.0,0.00018054,2]
[408034916,1773061832085,-151.0,0.00018054,2]
[408034918,1773061832095,-151.0,0.00018054,2]
[408034919,1773061832104,-151.0,0.00018054,2]
[408034920,1773061832115,-151.0,0.00018054,2]
[408034921,1773061832128,-151.0,0.00018054,2]
[408034922,1773061832137,-151.0,0.00018054,2]
[408034923,1773061832147,-151.0,0.00018054,2]
[408034924,1773061832157,-151.0,0.00018054,2]
[408034925,1773061832167,-151.0,0.00018054,2]
[408034926,1773061832177,-151.0,0.00018054,2]
[408034927,1773061832186,-151.0,0.00018054,2]
[408034928,1773061832195,-151.0,0.00018054,2]
[408034929,1773061832205,-151.0,0.00018054,2]
[408034930,1773061832214,-151.0,0.00018054,2]
[408034931,1773061832224,-289.57214403,0.00018054,2]
[408034932,1773061832234,-5279.6877,0.00018065,2]
[408034933,1773061832243,-188.9940742,0.000181,2]
[408034934,1773061832252,-500.0,0.000181,2]
[408034935,1773061832261,-949.9,0.00018105,2]
[408034936,1773061832271,-5743.28,0.00018209,2]
[408034937,1773061832280,-291.7949345,0.0001825,2]
[408034938,1773061832290,-600.0,0.00018356,7]
[408034939,1773061832299,-700.0,0.00018356,7]
[408034940,1773061832308,-500.0,0.00018356,7]
[408034941,1773061832323,-500.0,0.00018367,2]
[408034942,1773061832332,-2029.35857449,0.00018367,2]
[408034943,1773061832342,-500.0,0.00018406,2]
[408034944,1773061832351,-500.0,0.00018411,2]
[408034945,1773061832361,-200.0,0.00018448,2]
[408034946,1773061832373,-183.71,0.00018562,3]
[408034947,1773061832384,-2500.0,0.0001862,2]
[408034948,1773061832394,-150.66,0.0001864,2]
[408034949,1773061832404,-28029.69172749,0.00018708,2]
[408034950,1773061832418,-806.0,0.00018708,2]
[408034951,1773061832438,-1046.42972454,0.00018708,2]
[408034952,1773061832450,-2015.80487419,0.00018708,2]
[408034953,1773061832462,-729.0,0.00018708,2]
[408034954,1773061832480,-297.04785907,0.00018708,2]
[408034955,1773061832493,-3.67211471,0.00018708,2]
[408034956,1773061832504,-1000.0,0.00018708,2]
[408034957,1773061832514,-1629.29168709,0.0001872,2]
[408034958,1773061832528,-563.90783571,0.0001872,2]
[408034959,1773061832548,-612.8004772,0.0001872,2]
[408034960,1773061832557,-160.0,0.0001872,2]
[408034961,1773061832576,-500.0,0.00018802,2]
[408034962,1773061832588,-201.25450726,0.00018802,2]
[408034963,1773061832599,-174.61919141,0.00018802,2]
[408034964,1773061832608,-301.00069851,0.00018802,2]
[408034965,1773061832618,-272.62944185,0.00018802,2]
[408034966,1773061832628,-166.66,0.00018846,2]
[408034967,1773061832638,-512.0,0.00018969,3]
[408034968,1773061832648,-2128.51485111,0.00019,30]
[408034969,1773061833898,-397.84647269,0.00019,30]
[408034971,1773061837867,-2615.3324662,0.00019,30]
[408034972,1773061837876,-949.9,0.0001901,2]
[408034973,1773061837886,-624.5502902,0.00019014,2]
[408034974,1773061837896,-150.0,0.00019029,2]
[408034975,1773061837905,-624.5502902,0.00019068,2]
[408034976,1773061837915,-150.0,0.00019136,2]
[408034977,1773061837924,-624.5502902,0.00019151,2]
[408034978,1773061837934,-151.0,0.00019169,2]
[408034979,1773061837944,-1000.0,0.00019178,2]
[408034980,1773061837953,-2000.0,0.000192,2]
[408034981,1773061837963,-500.0,0.00019205,2]
[408034982,1773061837972,-624.5502902,0.00019233,2]
[408034983,1773061837981,-150.66,0.00019241,2]
[408034984,1773061837991,-151.0,0.00019273,2]
[408034985,1773061838001,-624.5502902,0.00019315,2]
[408034986,1773061838010,-500.0,0.00019315,2]
[408034987,1773061838020,-181.08010149,0.0001935,2]
[408034988,1773061838030,-350.0,0.00019358,2]
[408034989,1773061838039,-450.0,0.00019361,2]
[408034990,1773061838049,-624.5502902,0.0001937,2]
[408034991,1773061838058,-151.0,0.00019377,2]
[408034992,1773061838069,-150.223,0.00019403,2]
[408034993,1773061838078,-1279.0,0.00019403,2]
[408034994,1773061838088,-600.0,0.00019452,7]
[408034996,1773061838097,-700.0,0.00019452,7]
[408034998,1773061838107,-624.5502902,0.00019452,2]
[408035000,1773061838116,-1000.0,0.00019452,2]
[408035002,1773061838126,-166.66,0.00019468,2]
[408035004,1773061838138,-151.0,0.0001948,2]
[408035006,1773061838147,-781.45,0.00019493,2]
[408035008,1773061838156,-828.0,0.00019498,2]
[408035011,1773061838166,-624.5502902,0.00019534,2]
[408035013,1773061838175,-500.0,0.00019545,2]
[408035015,1773061838184,-500.0,0.00019545,2]
[408035017,1773061838194,-2351.0,0.00019551,2]
[408035019,1773061838204,-350.0,0.00019554,2]
[408035021,1773061838213,-151.0,0.00019584,2]
[408035023,1773061838222,-172.87392778,0.00019592,2]
[408035025,1773061838232,-745.97197749,0.000196,2]
[408035027,1773061838244,-539.37885843,0.000196,2]
[408035028,1773061838253,-84.79405643,0.0001961,2]
[408035031,1773061838268,-837.20594357,0.0001961,2]
[408035033,1773061838277,-439.58056643,0.0001961,2]
[408035038,1773061838315,-773.41943357,0.0001961,2]
[408035040,1773061838325,-3749.0,0.0001961,2]
[408035042,1773061838334,-5994.0,0.0001961,2]
[408035043,1773061838344,-624.5502902,0.00019616,2]
[408035044,1773061838353,-445.79943358,0.00019617,2]
[408035045,1773061838363,-500.0,0.00019617,2]
[408035046,1773061838372,-500.0,0.00019617,2]
[408035047,1773061838381,-500.0,0.00019618,2]
[408035048,1773061838390,-955.0,0.00019618,2]
[408035049,1773061838400,-500.0,0.00019618,2]
[408035050,1773061838409,-564.0,0.00019618,2]
[408035051,1773061838418,-150.0,0.00019618,2]
[408035052,1773061838427,-500.0,0.00019618,2]
[408035053,1773061838437,-150.0,0.00019618,2]
[408035054,1773061838446,-154.50653522,0.00019618,2]
[408035055,1773061838456,-150.0,0.00019618,2]
[408035056,1773061838465,-155.77130971,0.00019618,2]
[408035057,1773061838475,-500.0,0.00019618,2]
[408035058,1773061838484,-214.75538024,0.00019618,2]
[408035059,1773061838494,-150.0,0.00019618,2]
[408035060,1773061838503,-150.0,0.00019618,2]
[408035061,1773061838512,-161.7233301,0.00019618,2]
[408035062,1773061838522,-150.0,0.00019618,2]
[408035063,1773061838531,-150.0,0.00019618,2]
[408035064,1773061838540,-150.0,0.00019618,2]
[408035065,1773061838549,-150.0,0.00019618,2]
[408035066,1773061838558,-500.0,0.00019618,2]
[408035067,1773061838568,-1569.0,0.00019618,2]
[408035068,1773061838577,-743.0,0.00019618,2]
[408035069,1773061838587,-500.0,0.00019618,2]
[408035070,1773061838596,-150.0,0.00019618,2]
[408035071,1773061838605,-150.0,0.00019618,2]
[408035072,1773061838614,-150.0,0.00019618,2]
[408035073,1773061838624,-150.0,0.00019618,2]
[408035074,1773061838634,-500.0,0.00019618,2]
[408035075,1773061838643,-753.0,0.00019618,2]
[408035076,1773061838652,-500.0,0.00019618,2]
[408035077,1773061838661,-150.0,0.00019618,2]
[408035078,1773061838670,-150.0,0.00019618,2]
[408035079,1773061838679,-150.0,0.00019618,2]
[408035080,1773061838688,-150.0,0.00019618,2]
[408035081,1773061838697,-150.0,0.00019618,2]
[408035082,1773061838706,-500.0,0.00019618,2]
[408035083,1773061838717,-500.0,0.00019618,2]
[408035084,1773061838727,-500.0,0.00019618,2]
[408035085,1773061838736,-150.0,0.00019618,2]
[408035086,1773061838745,-500.0,0.00019618,2]
[408035087,1773061838754,-150.0,0.00019618,2]
[408035088,1773061838763,-828.0,0.00019618,2]
[408035089,1773061838772,-500.0,0.00019618,2]
[408035090,1773061838781,-500.0,0.00019618,2]
[408035091,1773061838790,-368.0,0.00019628,2]
[408035092,1773061838800,-669.0,0.0001967,5]
[408035093,1773061838809,-500.0,0.00019673,2]
[408035094,1773061838818,-955.0,0.00019673,2]
[408035095,1773061838828,-500.0,0.00019673,2]
[408035096,1773061838841,-564.0,0.00019673,2]
[408035097,1773061838850,-277.09096331,0.00019673,2]
[408035098,1773061838859,-500.0,0.00019673,2]
[408035099,1773061838869,-150.0,0.00019673,2]
[408035100,1773061838878,-285.50154825,0.00019673,2]
[408035101,1773061838888,-500.0,0.00019673,2]
[408035102,1773061838897,-232.79888752,0.00019673,2]
[408035103,1773061838906,-150.0,0.00019673,2]
[408035104,1773061839171,-150.0,0.00019673,2]
[408035105,1773061839193,-150.0,0.00019673,2]
[408035106,1773061839202,-150.0,0.00019673,2]
[408035107,1773061839211,-500.0,0.00019673,2]
[408035108,1773061839220,-1569.0,0.00019673,2]
[408035109,1773061839230,-743.0,0.00019673,2]
[408035110,1773061839239,-500.0,0.00019673,2]
[408035111,1773061839248,-150.0,0.00019673,2]
[408035112,1773061839258,-150.0,0.00019673,2]
[408035113,1773061839267,-500.0,0.00019673,2]
[408035114,1773061839276,-753.0,0.00019673,2]
[408035115,1773061839285,-500.0,0.00019673,2]
[408035116,1773061839294,-150.0,0.00019673,2]
[408035117,1773061839305,-150.0,0.00019673,2]
[408035118,1773061839314,-150.0,0.00019673,2]
[408035119,1773061839324,-500.0,0.00019673,2]
[408035120,1773061839333,-500.0,0.00019673,2]
[408035121,1773061839343,-500.0,0.00019673,2]
[408035122,1773061839352,-500.0,0.00019673,2]
[408035123,1773061839361,-828.0,0.00019673,2]
[408035124,1773061839371,-500.0,0.00019673,2]
[408035125,1773061839380,-500.0,0.00019673,2]
[408035126,1773061839390,-500.0,0.00019673,2]
[408035127,1773061839399,-2057.0,0.0001968,2]
[408035128,1773061839409,-1047.42795547,0.00019682,2]
[408035129,1773061839418,-151.0,0.00019688,2]
[408035130,1773061839428,-328.79,0.00019698,2]
[408035131,1773061839438,-500.0,0.00019698,2]
[408035132,1773061839448,-624.5502902,0.00019699,2]
[408035133,1773061839457,-828.0,0.00019706,2]
[408035134,1773061839466,-1047.42795546,0.00019713,2]
[408035135,1773061839475,-7376.08,0.00019715,2]
[408035136,1773061839484,-250.0,0.00019723,2]
[408035137,1773061839493,-8482.4506,0.00019725,2]
[408035138,1773061839503,-1000.0,0.00019726,2]
[408035139,1773061839512,-500.0,0.00019728,2]
[408035140,1773061839521,-955.0,0.00019728,2]
[408035141,1773061839530,-500.0,0.00019728,2]
[408035142,1773061839540,-564.0,0.00019728,2]
[408035143,1773061839549,-600.0,0.00019728,2]
[408035144,1773061839558,-150.0,0.00019728,2]
[408035145,1773061839568,-500.0,0.00019728,2]
[408035146,1773061839578,-152.96458514,0.00019728,2]
[408035147,1773061839587,-150.0,0.00019728,2]
[408035148,1773061839597,-150.0,0.00019728,2]
[408035149,1773061839606,-200.0,0.00019728,2]
[408035150,1773061839615,-500.0,0.00019728,2]
[408035151,1773061839624,-1569.0,0.00019728,2]
[408035152,1773061839633,-743.0,0.00019728,2]
[408035153,1773061839643,-500.0,0.00019728,2]
[408035154,1773061839652,-150.0,0.00019728,2]
[408035155,1773061839661,-200.0,0.00019728,2]
[408035156,1773061839671,-500.0,0.00019728,2]
[408035157,1773061839680,-753.0,0.00019728,2]
[408035158,1773061839690,-500.0,0.00019728,2]
[408035159,1773061839699,-200.0,0.00019728,2]
[408035160,1773061839708,-200.0,0.00019728,2]
[408035161,1773061839718,-200.0,0.00019728,2]
[408035162,1773061839728,-500.0,0.00019728,2]
[408035163,1773061839737,-500.0,0.00019728,2]
[408035164,1773061839746,-500.0,0.00019728,2]
[408035165,1773061839756,-828.0,0.00019728,2]
[408035166,1773061839766,-500.0,0.00019728,2]
[408035167,1773061839775,-500.0,0.00019728,2]
[408035168,1773061839784,-500.0,0.00019728,2]
[408035169,1773061839794,-331.0,0.00019743,2]
[408035170,1773061839806,-1047.42795546,0.00019744,2]
[408035171,1773061839815,-828.0,0.00019748,2]
[408035172,1773061839829,-2913.52,0.00019748,2]
[408035173,1773061839838,-2913.52,0.00019748,2]
[408035174,1773061839848,-3373.86,0.00019748,2]
[408035175,1773061839857,-1788.51838975,0.0001975,2]
[408035176,1773061839866,-624.5502902,0.00019753,2]
[408035177,1773061839875,-1788.51838971,0.00019767,2]
[408035178,1773061839885,-250.0,0.00019767,2]
[408035180,1773061839894,-781.45,0.00019767,2]
[408035181,1773061839903,-1047.42795546,0.00019775,2]
[408035182,1773061839912,-500.0,0.00019782,2]
[408035183,1773061839922,-955.0,0.00019782,2]
[408035184,1773061839930,-500.0,0.00019782,2]
[408035185,1773061839938,-564.0,0.00019782,2]
[408035186,1773061839948,-150.0,0.00019782,2]
[408035187,1773061839956,-500.0,0.00019782,2]
[408035188,1773061839965,-150.0,0.00019782,2]
[408035189,1773061839973,-150.0,0.00019782,2]
[408035191,1773061839982,-500.0,0.00019782,2]
[408035192,1773061839991,-1569.0,0.00019782,2]
[408035193,1773061840000,-743.0,0.00019782,2]
[408035194,1773061840008,-501.70358089,0.00019782,2]
[408035195,1773061840018,-233.0,0.00019782,2]
[408035196,1773061840027,-500.0,0.00019782,2]
[408035197,1773061840037,-753.0,0.00019782,2]
[408035198,1773061840047,-500.0,0.00019782,2]
[408035199,1773061840057,-500.0,0.00019782,2]
[408035200,1773061840067,-500.0,0.00019782,2]
[408035201,1773061840078,-500.0,0.00019782,2]
[408035202,1773061840088,-828.0,0.00019782,2]
[408035203,1773061840097,-500.0,0.00019782,2]
[408035204,1773061840107,-500.0,0.00019782,2]
[408035205,1773061840120,-500.0,0.00019783,2]
[408035206,1773061840129,-2471.0,0.00019783,2]
[408035207,1773061840139,-250.0,0.00019783,2]
[408035208,1773061840148,-1788.51838971,0.00019783,2]
[408035209,1773061840158,-151.0,0.00019792,2]
[408035210,1773061840167,-2000.0,0.000198,2]
[408035211,1773061840177,-2000.0,0.000198,2]
[408035212,1773061840192,-1788.51838971,0.000198,2]
[408035214,1773061840201,-2000.0,0.000198,2]
[408035215,1773061840211,-1047.42795546,0.00019807,2]
[408035216,1773061840220,-3660.968,0.0001981,2]
[408035217,1773061840229,-183.778,0.0001981,2]
[408035218,1773061840238,-250.0,0.0001981,2]
[408035219,1773061840247,-1788.51838971,0.00019817,2]
[408035220,1773061840257,-1788.51838971,0.00019833,2]
[408035221,1773061840267,-624.5502902,0.00019836,2]
[408035222,1773061840276,-250.0,0.00019837,2]
[408035223,1773061840286,-500.0,0.00019837,2]
[408035224,1773061840295,-955.0,0.00019837,2]
[408035225,1773061840304,-564.0,0.00019837,2]
[408035226,1773061840312,-217.87375586,0.00019837,2]
[408035227,1773061840322,-500.0,0.00019837,2]
[408035228,1773061840333,-1569.0,0.00019837,2]
[408035229,1773061840342,-743.0,0.00019837,2]
[408035230,1773061840352,-500.0,0.00019837,2]
[408035231,1773061840361,-753.0,0.00019837,2]
[408035232,1773061840371,-500.0,0.00019837,2]
[408035233,1773061840380,-500.0,0.00019837,2]
[408035234,1773061840389,-500.0,0.00019837,2]
[408035235,1773061840401,-500.0,0.00019837,2]
[408035236,1773061840410,-828.0,0.00019837,2]
[408035237,1773061840420,-500.0,0.00019837,2]
[408035238,1773061840429,-500.0,0.00019837,2]
[408035239,1773061840439,-500.0,0.00019837,2]
[408035240,1773061840447,-1047.42795546,0.00019838,2]
[408035241,1773061840457,-150.66,0.00019842,2]
[408035242,1773061840467,-150.18,0.0001985,2]
[408035243,1773061840476,-1788.51838971,0.0001985,2]
[408035244,1773061840485,-401.0,0.00019858,2]
[408035245,1773061840495,-7376.08,0.00019866,2]
[408035246,1773061840504,-1788.51838971,0.00019867,2]
[408035247,1773061840513,-276.85733071,0.00019867,2]
[408035248,1773061840523,-1047.42795546,0.00019869,2]
[408035249,1773061840533,-10000.0,0.00019873,2]
[408035250,1773061840543,-151.0,0.00019873,2]
[408035251,1773061840552,-250.0,0.00019875,3]
[408035252,1773061840562,-227767.3706056,0.00019876,2]
[408035253,1773061840572,-162.2660759,0.00019876,2]
[408035254,1773061840585,-1788.51838971,0.00019883,2]
[408035255,1773061840594,-500.0,0.00019892,2]
[408035256,1773061840603,-955.0,0.00019892,2]
[408035257,1773061840613,-564.0,0.00019892,2]
[408035258,1773061840622,-1569.0,0.00019892,2]
[408035259,1773061840631,-743.0,0.00019892,2]
[408035260,1773061840641,-500.0,0.00019892,2]
[408035262,1773061840651,-753.0,0.00019892,2]
[408035263,1773061840661,-500.0,0.00019892,2]
[408035264,1773061840670,-500.0,0.00019892,2]
[408035265,1773061840680,-500.0,0.00019892,2]
[408035266,1773061840689,-500.0,0.00019892,2]
[408035267,1773061840699,-828.0,0.00019892,2]
[408035268,1773061840708,-500.0,0.00019892,2]
[408035269,1773061840718,-315.95259189,0.00019892,2]
[408035270,1773061840728,-151.0,0.00019896,2]
[408035271,1773061840738,-187.78006525,0.00019898,2]